fUST/lending_fUST_20260115
["ID","MTS","AMOUNT","RATE_DAILY","PERIOD"]
[401933579,1768410639911,-4000.0,0.00017534,2]
[401933580,1768410639920,-1041.66666667,0.00017619,2]
[401933581,1768410639930,-4500.0,0.00017656,2]
[401933582,1768410639939,-4500.0,0.00017656,2]
[401933583,1768410639948,-4500.0,0.00017656,2]
[401933584,1768410639957,-4500.0,0.00017656,2]
[401933585,1768410639967,-868.1,0.00017751,2]
[401933586,1768410639977,-1613.0,0.00017776,2]
[401933587,1768410639987,-1000.0,0.00017917,2]
[401933588,1768410639996,-244.0,0.00017917,2]
[401933589,1768410640005,-151.0,0.00018,2]
[401933590,1768410640015,-2700.0,0.00018056,2]
[401933591,1768410640025,-4500.0,0.00018082,2]
[401933592,1768410640034,-4500.0,0.00018082,2]
[401933593,1768410640044,-4088.14205975,0.00018204,2]
[401933594,1768410640053,-5000.0,0.00018204,2]
[401933595,1768410640063,-5000.0,0.00018204,2]
[401933596,1768410640072,-5000.0,0.00018204,2]
[401933597,1768410640082,-2707.61092211,0.00018356,2]
[401933599,1768410640091,-3000.0,0.00018604,2]
[401933601,1768410640100,-5000.0,0.0001863,2]
[401933603,1768410640110,-600.0,0.0001863,2]
[401933605,1768410640120,-5000.0,0.0001863,2]
[401933607,1768410640129,-762.27008952,0.00018687,2]
[401933609,1768410640139,-151.0,0.000187,2]
[401933611,1768410640148,-5500.0,0.00018752,2]
[401933613,1768410640159,-5500.0,0.00018752,2]
[401933615,1768410640167,-4540.44472477,0.00018752,2]
[401933617,1768410640176,-151.0,0.000188,2]
[401933618,1768410640185,-482.59332867,0.00018833,2]
[401933620,1768410640196,-1451.86588583,0.00018863,2]
[401933622,1768410640205,-303.10001603,0.000189,2]
[401933624,1768410640214,-303.10001603,0.000189,2]
[401933626,1768410640223,-303.10001603,0.00019089,2]
[401933628,1768410640232,-303.10001603,0.00019089,2]
[401933630,1768410640241,-868.1,0.00019091,2]
[401933632,1768410640253,-73080.91741,0.00019152,7]
[401933634,1768410640263,-2556.20051056,0.00019152,2]
[401933636,1768410640272,-507.1352,0.00019178,2]
[401933638,1768410640281,-2535.6762,0.00019178,2]
[401933640,1768410640292,-2535.6762,0.00019178,2]
[401933642,1768410640302,-507.1352,0.00019178,2]
[401933644,1768410640311,-200.0,0.00019178,2]
[401933646,1768410640321,-507.1352,0.00019178,2]
[401933648,1768410640330,-507.1352,0.00019178,2]
[401933650,1768410640340,-2535.6762,0.00019178,2]
[401933652,1768410640349,-1352.36,0.00019178,2]
[401933654,1768410640358,-992.840133,0.00019178,7]
[401933656,1768410640367,-5500.0,0.00019178,2]
[401933659,1768410640377,-5500.0,0.00019178,2]
[401933661,1768410640386,-167.77,0.000192,2]
[401933662,1768410640396,-4394.07,0.000192,2]
[401933665,1768410640405,-198.77,0.000192,2]
[401933667,1768410640413,-253.56,0.000192,2]
[401933670,1768410640423,-30607.73,0.000192,2]
[401933671,1768410640432,-620.516417,0.000192,7]
[401933674,1768410640441,-155.129105,0.000192,7]
[401933676,1768410640450,-4773.19507779,0.00019261,2]
[401933678,1768410640459,-303.10001603,0.00019278,2]
[401933680,1768410640469,-303.10001603,0.00019278,2]
[401933682,1768410640478,-6000.0,0.000193,2]
[401933684,1768410640488,-6000.0,0.000193,2]
[401933686,1768410640497,-300.24988,0.00019467,7]
[401933688,1768410640507,-303.10001603,0.00019467,2]
[401933690,1768410640516,-303.10001603,0.00019467,2]
[401933692,1768410640525,-151.0,0.000195,2]
[401933694,1768410640535,-2258.0,0.00019532,2]
[401933696,1768410640545,-2482.100332,0.00019589,7]
[401933698,1768410640555,-182702.293526,0.00019589,7]
[401933700,1768410640564,-1251.041165,0.00019656,7]
[401933702,1768410640574,-303.10001603,0.00019656,2]
[401933704,1768410640583,-303.10001603,0.00019656,2]
[401933706,1768410640592,-1000.0,0.00019709,2]
[401933708,1768410640602,-492.0,0.00019709,2]
[401933710,1768410640611,-15538.592489,0.00019726,7]
[401933712,1768410640620,-800.0,0.00019726,2]
[401933734,1768410640814,-250.0,0.00019726,2]
[401933736,1768410640823,-6000.0,0.00019726,2]
[401933738,1768410640833,-6000.0,0.00019726,2]
[401933740,1768410640843,-250.0,0.00019726,2]
[401933742,1768410640853,-183.58,0.00019742,2]
[401933744,1768410640862,-454.65002405,0.00019845,4]
[401933746,1768410640872,-454.65002405,0.00019845,4]
[401933748,1768410640882,-4573.24025849,0.00019848,2]
[401933750,1768410640891,-6500.0,0.00019848,2]
[401933752,1768410640901,-9661.0,0.0002,2]
[401933754,1768410640910,-5004.164658,0.0002,7]
[401933757,1768410640920,-750.624698,0.0002,7]
[401933759,1768410640929,-204.3748,0.0002,4]
[401933761,1768410640939,-507.1352,0.0002,4]
[401933763,1768410640949,-507.1352,0.0002,4]
[401933765,1768410640958,-300.0,0.0002,2]
[401933767,1768410640968,-507.1352,0.0002,4]
[401933769,1768410640977,-151.55000802,0.0002,2]
[401933770,1768410640986,-454.65002405,0.00020034,4]
[401933772,1768410640996,-454.65002405,0.00020034,4]
[401933774,1768410641005,-6205.25083,0.00020223,7]
[401933776,1768410641015,-454.65002405,0.00020223,4]
[401933778,1768410641024,-454.65002405,0.00020223,4]
[401933780,1768410641033,-200.91058964,0.00020274,2]
[401933782,1768410641042,-6500.0,0.00020274,2]
[401933784,1768410641052,-350.0,0.00020274,2]
[401933786,1768410641061,-2902.72600724,0.00020274,2]
[401933788,1768410641070,-6183.87260271,0.00020396,2]
[401933790,1768410641080,-507.1352,0.00020411,5]
[401933792,1768410641089,-507.1352,0.00020411,5]
[401933794,1768410641098,-507.1352,0.00020411,5]
[401933796,1768410641108,-454.65002405,0.00020412,4]
[401933798,1768410641117,-454.65002405,0.00020412,4]
[401933800,1768410641126,-868.1,0.00020432,2]
[401933802,1768410641135,-151.0,0.000206,3]
[401933804,1768410641144,-198.77,0.000206,2]
[401933806,1768410641154,-253.56,0.000206,2]
[401933808,1768410641163,-30607.73,0.000206,2]
[401933810,1768410641172,-5777.62559008,0.00020601,4]
[401933812,1768410641181,-454.65002405,0.00020601,4]
[401933814,1768410641191,-454.65002405,0.00020601,4]
[401933816,1768410641200,-160.35823449,0.00020656,2]
[401933818,1768410641210,-842.04254075,0.00020687,2]
[401933820,1768410641219,-4394.07,0.000207,2]
[401933822,1768410641229,-38846.481221,0.000207,7]
[401933824,1768410641239,-1000.0,0.00020822,2]
[401933826,1768410641250,-7000.0,0.00020822,2]
[401933829,1768410641272,-450.0,0.00020822,2]
[401933830,1768410641293,-3000.0,0.00021,2]
[401933832,1768410641312,-151.0,0.00021,3]
[401933834,1768410641321,-3000.0,0.0002101,2]
[401933836,1768410641330,-3000.0,0.0002102,2]
[401933838,1768410641349,-3000.0,0.0002103,2]
[401933840,1768410641366,-3000.0,0.0002104,2]
[401933842,1768410641375,-3000.0,0.0002105,2]
[401933844,1768410641384,-152.96957802,0.00021051,2]
[401933846,1768410641393,-3000.0,0.0002106,2]
[401933848,1768410641402,-3000.0,0.0002107,2]
[401933850,1768410641411,-3000.0,0.0002108,2]
[401933853,1768410641420,-3000.0,0.0002109,2]
[401933855,1768410641429,-3000.0,0.000211,2]
[401933857,1768410641440,-3000.0,0.0002111,2]
[401933858,1768410641449,-3000.0,0.0002112,2]
[401933861,1768410641458,-3000.0,0.0002113,2]
[401933863,1768410641467,-3000.0,0.0002114,2]
[401933865,1768410641477,-3000.0,0.0002115,2]
[401933867,1768410641486,-3000.0,0.0002116,2]
[401933869,1768410641496,-3000.0,0.0002117,2]
[401933871,1768410641505,-3000.0,0.0002118,2]
[401933873,1768410641514,-3000.0,0.0002119,2]
[401933875,1768410641523,-3000.0,0.000212,2]
[401933877,1768410641532,-3000.0,0.0002121,2]
[401933879,1768410641542,-3000.0,0.0002122,2]
[401933881,1768410641551,-3000.0,0.0002123,2]
[401933883,1768410641560,-3000.0,0.0002124,2]
[401933885,1768410641570,-15513.127075,0.0002124,7]
[401933887,1768410641580,-3000.0,0.0002125,2]
[401933889,1768410641591,-3000.0,0.0002126,2]
[401933891,1768410641601,-3000.0,0.0002127,2]
[401933893,1768410641610,-3000.0,0.0002128,2]
[401933895,1768410641619,-3000.0,0.0002129,2]
[401933897,1768410641628,-324.801283,0.0002129,7]
[401933899,1768410641637,-3000.0,0.000213,2]
[401933901,1768410641646,-3000.0,0.0002131,2]
[401933903,1768410641655,-3000.0,0.0002132,2]
[401933905,1768410641664,-3000.0,0.0002133,2]
[401933907,1768410641673,-3000.0,0.0002134,2]
[401933909,1768410641686,-3000.0,0.0002135,2]
[401933911,1768410641696,-7266.136681,0.0002135,7]
[401933913,1768410641707,-3000.0,0.0002136,2]
[401933915,1768410641717,-7500.0,0.0002137,2]
[401933917,1768410641727,-550.0,0.0002137,2]
[401933919,1768410641736,-3000.0,0.0002137,2]
[401933921,1768410641747,-3000.0,0.0002138,2]
[401933923,1768410641756,-3000.0,0.0002139,2]
[401933926,1768410641765,-3162.0,0.00021461,2]
[401933928,1768410641775,-962.95426501,0.00021472,14]
[401933930,1768410641784,-183.58,0.00021566,2]
[401933932,1768410641793,-1000.0,0.0002168,10]
[401933934,1768410641803,-791.0,0.0002168,10]
[401933936,1768410641812,-868.1,0.00021772,2]
[401933938,1768410641822,-5364.52541442,0.00021918,2]
[401933940,1768410641832,-1200.0,0.00021918,2]
[401933942,1768410641841,-650.0,0.00021918,2]
[401933944,1768410641850,-1795.08,0.00022,7]
[401933946,1768410641860,-495.69002204,0.00022013,2]
[401933948,1768410641869,-30450.382254,0.00022025,30]
[401933950,1768410641878,-4773.19507779,0.0002203,2]
[401933952,1768410641887,-413.683388,0.00022055,30]
[401933954,1768410641896,-258.548507,0.0002208,30]
[401933956,1768410641906,-962.95426501,0.00022342,15]
[401933958,1768410641915,-30607.73,0.000224,2]
[401933960,1768410641924,-300.0,0.00022466,2]
[401933962,1768410641933,-200.0,0.00022466,2]
[401933964,1768410641943,-750.0,0.00022466,2]
[401933966,1768410641953,-151.0,0.000225,9]
[401933968,1768410641962,-151.0,0.000225,8]
[401933970,1768410641971,-198.77,0.000225,7]
[401933972,1768410641982,-253.56,0.000225,7]
[401933974,1768410641992,-921.81499198,0.00022687,2]
[401933976,1768410642002,-4394.07,0.00023,14]
[401933978,1768410642012,-450.0,0.00023014,2]
[401933980,1768410642022,-250.0,0.00023014,2]
[401933982,1768410642032,-1400.0,0.00023014,2]
[401933984,1768410642042,-850.0,0.00023014,2]
[401933986,1768410642051,-430.42,0.000231,7]
[401933988,1768410642061,-868.1,0.00023112,2]
[401933990,1768410642071,-1700.0,0.00023143,2]
[401933992,1768410642080,-500.0,0.00023143,2]
[401933994,1768410642090,-1700.0,0.00023145,2]
[401933996,1768410642099,-800.0,0.00023149,2]
[401933998,1768410642109,-182.95072115,0.0002315,2]
[401934000,1768410642119,-1700.0,0.00023165,2]
[401934002,1768410642129,-800.0,0.00023171,2]
[401934004,1768410642139,-800.0,0.00023196,2]
[401934006,1768410642149,-167.77,0.000232,7]
[401934008,1768410642158,-151.0,0.00023211,2]
[401934010,1768410642169,-151.0,0.00023211,2]
[401934012,1768410642178,-151.0,0.00023211,2]
[401934014,1768410642188,-151.0,0.00023211,2]
[401934016,1768410642198,-151.0,0.00023211,2]
[401934018,1768410642208,-151.0,0.00023211,2]
[401934020,1768410642218,-151.0,0.00023211,2]
[401934022,1768410642228,-151.0,0.00023211,2]
[401934024,1768410642237,-224.869292,0.00023211,2]
[401934027,1768410642247,-151.0,0.00023211,2]
[401934029,1768410642259,-1570.773702,0.00023211,2]
[401934030,1768410642268,-151.0,0.00023211,2]
[401934032,1768410642278,-1570.773702,0.00023211,2]
[401934034,1768410642287,-1570.773702,0.00023211,2]
[401934036,1768410642298,-151.0,0.00023211,2]
[401934038,1768410642307,-1570.773702,0.00023211,2]
[401934040,1768410642316,-151.0,0.00023211,2]
[401934043,1768410642327,-151.0,0.00023211,2]
[401934045,1768410642336,-151.0,0.00023211,2]
[401934046,1768410642346,-302.604582,0.00023211,2]
[401934048,1768410642355,-302.604582,0.00023211,2]
[401934050,1768410642364,-171.320259,0.00023211,2]
[401934053,1768410642374,-302.604582,0.00023211,2]
[401934054,1768410642383,-302.604582,0.00023211,2]
[401934056,1768410642393,-900.0,0.00023211,2]
[401934059,1768410642402,-962.95426501,0.00023213,17]
[401934061,1768410642412,-500.0,0.00023252,2]
[401934063,1768410642422,-800.0,0.00023318,2]
[401934065,1768410642431,-900.0,0.0002332,2]
[401934066,1768410642441,-900.0,0.00023322,2]
[401934069,1768410642451,-1700.0,0.00023333,2]
[401934070,1768410642461,-259.047216,0.00023391,2]
[401934072,1768410642471,-259.047216,0.00023391,2]
[401934074,1768410642483,-259.047216,0.00023391,2]
[401934077,1768410642492,-151.0,0.00023391,2]
[401934079,1768410642502,-259.047216,0.00023391,2]
[401934080,1768410642511,-2213.011208,0.00023391,2]
[401934083,1768410642522,-2213.011208,0.00023391,2]
[401934086,1768410642532,-151.0,0.00023391,2]
[401934088,1768410642541,-2213.011208,0.00023391,2]
[401934089,1768410642550,-2213.011208,0.00023391,2]
[401934092,1768410642559,-153.839404,0.00023391,2]
[401934093,1768410642569,-240.755518,0.00023391,2]
[401934096,1768410642578,-800.0,0.00023391,2]
[401934098,1768410642587,-1700.0,0.00023394,2]
[401934101,1768410642597,-900.0,0.00023399,2]
[401934103,1768410642606,-1700.0,0.00023438,2]
[401934104,1768410642615,-900.0,0.00023441,2]
[401934106,1768410642624,-800.0,0.00023479,2]
[401934108,1768410642633,-171.177356,0.00023479,2]
[401934111,1768410642644,-171.177356,0.00023479,2]
[401934112,1768410642653,-341.283719,0.00023479,2]
[401934114,1768410642662,-171.177356,0.00023479,2]
[401934116,1768410642671,-341.283719,0.00023479,2]
[401934118,1768410642680,-171.177356,0.00023479,2]
[401934121,1768410642690,-341.283719,0.00023479,2]
[401934122,1768410642699,-341.283719,0.00023479,2]
[401934124,1768410642709,-151.0,0.00023479,2]
[401934127,1768410642718,-609.357036,0.00023479,2]
[401934129,1768410642727,-609.357036,0.00023479,2]
[401934130,1768410642737,-609.357036,0.00023479,2]
[401934132,1768410642746,-609.357036,0.00023479,2]
[401934134,1768410642755,-795.987765,0.00023479,2]
[401934136,1768410642764,-795.987765,0.00023479,2]
[401934138,1768410642773,-151.0,0.00023479,2]
[401934140,1768410642782,-151.0,0.00023479,2]
[401934142,1768410642791,-151.0,0.00023479,2]
[401934145,1768410642800,-795.987765,0.00023479,2]
[401934148,1768410642810,-151.0,0.00023479,2]
[401934150,1768410642819,-795.987765,0.00023479,2]
[401934152,1768410642828,-900.0,0.00023498,2]
[401934154,1768410642837,-500.0,0.000235,2]
[401934156,1768410642846,-1700.0,0.00023508,2]
[401934158,1768410642855,-152.98,0.00023509,2]
[401934160,1768410642864,-900.0,0.00023516,2]
[401934162,1768410642873,-900.0,0.00023539,2]
[401934164,1768410642882,-1700.0,0.0002355,2]
[401934166,1768410642891,-600.0,0.00023562,2]
[401934168,1768410642900,-210.92385342,0.00023562,2]
[401934170,1768410642910,-950.0,0.00023562,2]
[401934172,1768410642920,-4427.0,0.00023581,2]
[401934174,1768410642929,-677.806969,0.00023586,2]
[401934176,1768410642938,-677.806969,0.00023586,2]
[401934178,1768410642948,-677.806969,0.00023586,2]
[401934180,1768410642958,-677.806969,0.00023586,2]
[401934182,1768410642967,-900.0,0.00023638,2]
[401934184,1768410642976,-900.0,0.00023661,2]
[401934185,1768410642986,-800.0,0.00023682,2]
[401934188,1768410642995,-800.0,0.00023695,2]
[401934190,1768410643005,-800.0,0.00023699,2]
[401934192,1768410643015,-1795.08,0.000237,7]
[401934194,1768410643024,-800.0,0.00023704,2]
[401934196,1768410643033,-900.0,0.0002372,2]
[401934198,1768410643043,-900.0,0.00023743,2]
[401934200,1768410643051,-900.0,0.00023744,2]
[401934201,1768410643061,-500.0,0.00023758,2]
[401934204,1768410643071,-500.0,0.00023811,2]
[401934205,1768410643080,-151.0,0.00023811,2]
[401934207,1768410643089,-151.0,0.00023811,2]
[401934209,1768410643098,-151.0,0.00023811,2]
[401934211,1768410643108,-800.0,0.00023839,2]
[401934214,1768410643119,-1000.0,0.00023848,10]
[401934216,1768410643128,-1000.0,0.00023848,10]
[401934217,1768410643138,-1700.0,0.00023855,2]
[401934219,1768410643147,-500.0,0.00023892,2]
[401934220,1768410643156,-30607.73,0.000239,2]
[401934222,1768410643166,-442.400587,0.000239,2]
[401934224,1768410643175,-151.0,0.000239,2]
[401934225,1768410643185,-442.400587,0.000239,2]
[401934227,1768410643194,-442.400587,0.000239,2]
[401934228,1768410643204,-442.400587,0.000239,2]
[401934229,1768410643214,-151.0,0.000239,2]
[401934230,1768410643223,-151.0,0.000239,2]
[401934231,1768410643233,-240.635546,0.000239,2]
[401934232,1768410643243,-151.0,0.000239,2]
[401934233,1768410643256,-151.0,0.000239,2]
[401934234,1768410643266,-151.0,0.000239,2]
[401934235,1768410643276,-151.0,0.000239,2]
[401934236,1768410643285,-151.0,0.000239,2]
[401934237,1768410643296,-157.974003,0.000239,2]
[401934238,1768410643306,-500.0,0.00023904,2]
[401934239,1768410643315,-800.0,0.00023933,2]
[401934240,1768410643325,-1041.66666667,0.00024,7]
[401934241,1768410643335,-151.0,0.00024,9]
[401934242,1768410643344,-198.77,0.00024,7]
[401934243,1768410643354,-253.56,0.00024,7]
[401934244,1768410643363,-1041.66666667,0.00024,7]
[401934245,1768410643373,-1700.0,0.00024007,2]
[401934246,1768410643382,-1700.0,0.00024008,2]
[401934247,1768410643391,-800.0,0.00024023,2]
[401934249,1768410643401,-1700.0,0.00024024,2]
[401934251,1768410643410,-800.0,0.0002404,2]
[401934253,1768410643419,-180.07563177,0.00024044,2]
[401934255,1768410643428,-1700.0,0.00024052,2]
[401934256,1768410643438,-800.0,0.00024069,2]
[401934258,1768410643447,-1700.0,0.00024081,2]
[401934259,1768410643457,-962.95426501,0.00024084,18]
[401934260,1768410643467,-750.0,0.0002411,2]
[401934261,1768410643478,-1601.4141805,0.0002411,2]
[401934262,1768410643488,-1050.0,0.0002411,2]
[401934263,1768410643498,-190.0,0.00024112,2]
[401934264,1768410643507,-500.0,0.00024118,2]
[401934265,1768410643517,-500.0,0.00024121,2]
[401934266,1768410643527,-500.0,0.00024155,2]
[401934267,1768410643538,-1700.0,0.00024156,2]
[401934268,1768410643547,-167.12486556,0.00024161,5]
[401934269,1768410643556,-800.0,0.00024165,2]
[401934270,1768410643566,-900.0,0.00024193,2]
[401934271,1768410643575,-4394.07,0.000242,14]
[401934272,1768410643585,-800.0,0.00024238,2]
[401934273,1768410643594,-238.26879672,0.00024274,12]
[401934274,1768410643603,-900.0,0.0002428,2]
[401934275,1768410643613,-900.0,0.00024284,2]
[401934276,1768410643622,-800.0,0.00024291,2]
[401934277,1768410643631,-800.0,0.00024351,2]
[401934278,1768410643640,-522.88356834,0.00024355,2]
[401934279,1768410643649,-900.0,0.00024367,2]
[401934280,1768410643658,-800.0,0.00024378,2]
[401934281,1768410643667,-500.0,0.00024378,2]
[401934282,1768410643676,-1982.76008815,0.00024382,2]
[401934283,1768410643685,-1593.0,0.00024392,7]
[401934284,1768410643694,-12705.37423421,0.00024397,2]
[401934285,1768410643703,-151.0,0.000244,5]
[401934286,1768410643712,-800.0,0.00024414,2]
[401934287,1768410643722,-1700.0,0.0002442,2]
[401934288,1768410643731,-900.0,0.00024442,2]
[401934289,1768410643740,-868.1,0.00024452,2]
[401934290,1768410643749,-499.3,0.00024492,2]
[401934291,1768410643758,-1082.98429516,0.00024497,2]
[401934292,1768410643768,-1700.0,0.00024508,2]
[401934293,1768410643778,-1700.0,0.00024527,2]
[401934294,1768410643787,-800.0,0.00024543,2]
[401934295,1768410643797,-800.0,0.00024545,2]
[401934296,1768410643806,-500.0,0.00024559,2]
[401934297,1768410643815,-1700.0,0.00024563,2]
[401934298,1768410643824,-900.0,0.00024575,2]
[401934299,1768410643833,-1700.0,0.00024589,2]
[401934300,1768410643842,-900.0,0.00024594,2]
[401934301,1768410643851,-1700.0,0.00024647,2]
[401934302,1768410643860,-900.0,0.00024658,2]
[401934303,1768410643869,-1000.0,0.00024658,2]
[401934304,1768410643879,-5460.0,0.00024685,2]
[401934305,1768410643888,-1001.58744321,0.00024687,2]
[401934306,1768410643898,-1700.0,0.00024709,2]
[401934307,1768410643909,-5000.0,0.00024768,2]
[401934308,1768410643920,-1700.0,0.00024793,2]
[401934309,1768410643930,-791.34915639,0.00024798,2]
[401934310,1768410643939,-1795.08,0.000248,7]
[401934311,1768410643949,-4773.19507779,0.000248,2]
[401934312,1768410643958,-1700.0,0.00024834,2]
[401934313,1768410643968,-1593.0,0.00024851,2]
[401934314,1768410643977,-1700.0,0.00024858,2]
[401934315,1768410643986,-500.0,0.00024882,2]
[401934316,1768410643996,-900.0,0.00024886,2]
[401934317,1768410644006,-1700.0,0.00024893,2]
[401934318,1768410644015,-169.388304,0.000249,7]
[401934319,1768410644024,-151.0,0.000249,7]
[401934320,1768410644034,-181.655666,0.000249,7]
[401934321,1768410644044,-151.0,0.000249,7]
[401934322,1768410644053,-151.0,0.000249,7]
[401934323,1768410644063,-677.806969,0.000249,7]
[401934324,1768410644072,-677.806969,0.000249,7]
[401934325,1768410644081,-677.806969,0.000249,7]
[401934326,1768410644090,-677.806969,0.000249,7]
[401934327,1768410644100,-171.177356,0.000249,7]
[401934328,1768410644109,-171.177356,0.000249,7]
[401934329,1768410644119,-341.283719,0.000249,7]
[401934330,1768410644128,-171.177356,0.000249,7]
[401934331,1768410644138,-341.283719,0.000249,7]
[401934332,1768410644147,-171.177356,0.000249,7]
[401934333,1768410644156,-341.283719,0.000249,7]
[401934334,1768410644165,-341.283719,0.000249,7]
[401934335,1768410644174,-163.521598,0.000249,7]
[401934336,1768410644183,-609.357036,0.000249,7]
[401934337,1768410644193,-609.357036,0.000249,7]
[401934338,1768410644202,-609.357036,0.000249,7]
[401934339,1768410644212,-609.357036,0.000249,7]
[401934340,1768410644221,-795.987765,0.000249,7]
[401934341,1768410644231,-795.987765,0.000249,7]
[401934342,1768410644240,-151.0,0.000249,7]
[401934343,1768410644252,-151.0,0.000249,7]
[401934344,1768410644261,-151.0,0.000249,7]
[401934345,1768410644270,-795.987765,0.000249,7]
[401934346,1768410644279,-151.0,0.000249,7]
[401934347,1768410644290,-795.987765,0.000249,7]
[401934348,1768410644300,-259.047216,0.000249,7]
[401934349,1768410644309,-259.047216,0.000249,7]
[401934350,1768410644319,-259.047216,0.000249,7]
[401934351,1768410644328,-151.0,0.000249,7]
[401934352,1768410644338,-259.047216,0.000249,7]
[401934353,1768410644347,-2213.011208,0.000249,7]
[401934354,1768410644356,-2213.011208,0.000249,7]
[401934355,1768410644365,-151.0,0.000249,7]
[401934356,1768410644375,-2213.011208,0.000249,7]
[401934357,1768410644384,-2213.011208,0.000249,7]
[401934358,1768410644393,-604946.455805,0.000249,2]
[401934359,1768410644403,-151.0,0.000249,7]
[401934360,1768410644413,-275.55471384,0.000249,7]
[401934361,1768410644422,-151.0,0.000249,7]
[401934362,1768410644432,-155.398666,0.000249,7]
[401934363,1768410644441,-151.0,0.000249,7]
[401934364,1768410644450,-151.0,0.000249,7]
[401934365,1768410644459,-151.0,0.000249,2]
[401934366,1768410644469,-151.0,0.000249,7]
[401934367,1768410644478,-151.0,0.000249,7]
[401934368,1768410644493,-1570.773702,0.000249,7]
[401934369,1768410644503,-1570.773702,0.000249,7]
[401934370,1768410644514,-1570.773702,0.000249,7]
[401934371,1768410644523,-151.0,0.000249,7]
[401934372,1768410644533,-1570.773702,0.000249,7]
[401934373,1768410644542,-151.0,0.000249,7]
[401934374,1768410644552,-151.0,0.000249,7]
[401934375,1768410644562,-151.0,0.000249,7]
[401934376,1768410644573,-302.604582,0.000249,7]
[401934377,1768410644583,-302.604582,0.000249,7]
[401934378,1768410644593,-302.604582,0.000249,7]
[401934379,1768410644602,-302.604582,0.000249,7]
[401934380,1768410644612,-442.400587,0.000249,7]
[401934381,1768410644621,-151.0,0.000249,7]
[401934382,1768410644631,-442.400587,0.000249,7]
[401934383,1768410644641,-442.400587,0.000249,7]
[401934384,1768410644652,-442.400587,0.000249,7]
[401934385,1768410644662,-151.0,0.000249,7]
[401934386,1768410644672,-151.0,0.000249,7]
[401934387,1768410644682,-225.938304,0.000249,7]
[401934388,1768410644692,-151.0,0.000249,7]
[401934389,1768410644710,-285.638493,0.000249,7]
[401934390,1768410644720,-151.0,0.000249,7]
[401934391,1768410644729,-151.0,0.000249,7]
[401934392,1768410644739,-171.590908,0.000249,7]
[401934393,1768410644889,-151.0,0.000249,7]
[401934394,1768410644920,-151.0,0.000249,7]
[401934395,1768410644930,-900.0,0.00024912,2]
[401934396,1768410644940,-900.0,0.00024915,2]
[401934397,1768410644949,-1700.0,0.00024922,2]
[401934398,1768410644959,-800.0,0.00024929,2]
[401934399,1768410644969,-900.0,0.00024932,2]
[401934400,1768410644979,-1593.0,0.00024942,2]
[401934401,1768410644988,-900.0,0.00024943,2]
[401934402,1768410644998,-500.0,0.00024947,2]
[401934403,1768410645008,-962.95426501,0.00024955,19]
[401934404,1768410645018,-800.0,0.00024968,2]
[401934405,1768410645027,-2000.0,0.00024971,7]
[401934406,1768410645037,-800.0,0.00024971,2]
[401934407,1768410645047,-1700.0,0.0002499,2]
[401934408,1768410645057,-1041.66666667,0.00025,30]
[401934409,1768410645066,-293.85068442,0.00025011,7]
[401934410,1768410645075,-2100.0,0.00025011,7]